Cogmind - Beta 14 X2 @@@ ROGUE MODE // 2024.08.02 @ 00:44:34 Player: cptwinky Result: Destroyed by Lightning with EMDS Performance ------------- Evolutions (4) 2000 Regions Visited (15) 3000 Robots Destroyed (174) 870 Value Destroyed (5609) 5609 Prototype IDs (29) 580 Alien Tech Used (0) 0 Bonus (4280) 4280 TOTAL SCORE: 16339 Bonus ------- High Alert Combat Kills 324 Follower Combat Kills 2444 Network Hubs Disabled 400 Registered with UFD 300 Built Enhanced Grunts 300 A7 Reached Mainframe 300 Met R17 at Cetus 500 Friendly Fire -288 Cogmind --------- Core Integrity 0/850 Matter 300/300 Energy 93/100 System Corruption 20% Temperature Cool (0) Movement Core (150) Ox2 Location -6/Hub_04(d) Parts ------- > --- POWER (2) -------- (None) > --- PROPULSION (4) --- Flexi-carbon Leg > --- UTILITY (6) ------ Advanced Heat Sink Advanced Targeting Computer Centrium Medium Armor Plating Improved Hacking Suite > --- WEAPON (3) ------- (None) > --- INVENTORY (5) ---- Advanced Variable Charge Gun Advanced Datajack CPS Tube (2) Phasing Sabre Peak State ------------ > --- POWER ------------ Fission Core Quantum Reactor > --- PROPULSION ------- Flexi-carbon Leg Flexi-carbon Leg Flexi-carbon Leg Armored Leg > --- UTILITY ---------- Cryofiber Web Advanced Heat Sink Large Storage Unit Advanced Targeting Computer Improved Particle Charger Centrium Medium Armor Plating > --- WEAPON ----------- Advanced Beam Rifle Advanced Beam Rifle Advanced Variable Charge Gun > --- INVENTORY -------- Improved Deuterium Engine Myomer Leg Myomer Leg Advanced Heat Sink Experimental Terrain Scan Processor Centrium Medium Armor Plating Advanced Beam Rifle Heavy Beamcaster Improved Grenade Launcher Improved Datajack Plasma Cutter CPS Tube Phasing Sabre Phasing Sabre Vortex Trap [Rating: 83] Favorites ----------- Power Cooled Ion Engine Engine Cooled Ion Engine Power Core Fission Core Reactor Quantum Reactor Propulsion Aluminum Leg Treads Light Treads Leg Aluminum Leg Utility Large Storage Unit Device Cryofiber Web Storage Large Storage Unit Processor Advanced Targeting Computer Hackware Improved Hacking Suite Protection Reactive Plating Weapon Advanced Beam Rifle Energy Gun Advanced Beam Rifle Launcher Rocket Launcher Special Weapon Plasma Cutter Impact Weapon Heavy Flail Slashing Weapon Phasing Sabre Special Melee Weapon Improved Datajack Build | -11 -10 -10 -9 -9 -9 -8 -8 -8 -8 -8 -6 -6 -6 -6 -6 ------- Run | Yrd Mat Min Mat Min Exi Min Mat Sto Rec Scr Fac Ext Cet Arc Hub Slots Evolved 8 | . . . 2 . . . 2 . . . 4 . . . . Power 1 | . . . . . . . . . . . 1 . . . . Propulsion 2 | . . . 1 . . . . . . . 1 . . . . Utility 4 | . . . 1 . . . 1 . . . 2 . . . . Weapon 1 | . . . . . . . 1 . . . . . . . . Parts Attached 187 | 6 7 5 26 5 2 . 32 25 5 11 14 25 10 5 9 Power 15 | 1 . 1 3 . . . 2 1 . . 2 2 1 1 1 Engine 10 | 1 . 1 3 . . . 2 1 . . 1 . . . 1 Core 4 | . . . . . . . . . . . 1 2 . 1 . Reactor 1 | . . . . . . . . . . . . . 1 . . Propulsion 46 | 2 1 3 8 3 . . 4 4 1 2 5 8 2 . 3 Treads 6 | 2 1 1 1 . . . . . . 1 . . . . . Leg 40 | . . 2 7 3 . . 4 4 1 1 5 8 2 . 3 Wheel . | . . . . . . . . . . . . . . . . Hover . | . . . . . . . . . . . . . . . . Flight . | . . . . . . . . . . . . . . . . Utility 57 | 1 4 . 9 1 . . 12 7 . 6 3 6 2 4 2 Device 25 | . 1 . 5 . . . 7 3 . 1 1 4 1 2 . Storage 5 | 1 2 . 1 . . . 1 . . . . . . . . Processor 2 | . . . . . . . . . . . 1 . . 1 . Hackware 4 | . . . . . . . . 2 . . 1 . . 1 . Protection 21 | . 1 . 3 1 . . 4 2 . 5 . 2 1 . 2 Artifact . | . . . . . . . . . . . . . . . . Weapon 69 | 2 2 1 6 1 2 . 14 13 4 3 4 9 5 . 3 Energy Gun 48 | 2 2 1 6 . 2 . 10 8 1 3 3 6 3 . 1 Energy Cannon . | . . . . . . . . . . . . . . . . Ballistic Gun . | . . . . . . . . . . . . . . . . Ballistic Cannon . | . . . . . . . . . . . . . . . . Launcher 5 | . . . . . . . 2 1 . . 1 . . . 1 Special Weapon 2 | . . . . . . . . . . . . 1 1 . . Impact Weapon 4 | . . . . . . . 1 2 1 . . . . . . Slashing Weapon 1 | . . . . . . . . . . . . . . . 1 Piercing Weapon . | . . . . . . . . . . . . . . . . Special Melee Weapon 9 | . . . . 1 . . 1 2 2 . . 2 1 . . Unidentified Prototypes 7 | . . . 2 . . . 2 1 . . . . 2 . . Parts Lost 49 | . . 7 10 1 . . 5 2 . . 1 9 . . 14 Power 6 | . . 2 1 . . . . . . . 1 1 . . 1 Propulsion 17 | . . 3 4 . . . 2 . . . . 2 . . 6 Utility 13 | . . 1 2 1 . . 3 . . . . 3 . . 3 Weapon 13 | . . 1 3 . . . . 2 . . . 3 . . 4 Highest Loss Streak 14 | . . 6 2 1 . . 2 1 . . 1 2 . . 14 To Critical Strikes . | . . . . . . . . . . . . . . . . Average Slot Usage (%) 98 | . 99 90 98 100 90 100 99 99 99 99 97 96 100 99 89 Engine 8 | . 14 9 10 11 11 11 9 9 9 9 7 7 . . . Core 1 | . . . . . . . . . . . 4 4 6 6 5 Treads 2 | . 27 21 2 . . . . . . . . . . . . Leg 25 | . . 7 29 33 33 33 26 26 27 27 26 25 26 26 23 Device 13 | . . . 11 11 11 11 17 17 18 18 15 15 20 13 11 Storage 9 | . 14 14 11 11 11 11 9 9 9 9 6 6 6 6 5 Processor 1 | . . . . . . . . . . . 6 6 6 8 6 Protection 9 | . 12 9 10 11 11 11 9 8 9 8 6 7 6 6 6 Energy Gun 22 | . 28 28 22 22 3 22 26 26 24 19 19 18 18 20 16 Special Melee Weapon 1 | . . . . . 9 . . . 1 7 . 1 1 . . Naked Turns . | . . . . . . . . . . . . . . . . Heaviest Build 72 | 11 30 30 40 39 39 39 53 53 48 47 61 64 72 72 72 Greatest Support 81 | 40 40 40 30 30 30 30 35 45 45 45 72 76 76 76 81 Greatest Overweight (x) 23 | . . 7 1 1 1 1 2 1 1 1 . . . 23 2 Average Overweight (x) . | . . . . 1 1 1 1 1 . . . . . 3 . Largest Inventory Capacity 15 | 8 15 15 15 15 15 15 15 15 15 15 15 15 15 15 15 Average Capacity 14 | 7 12 15 15 15 15 15 15 15 15 15 15 15 15 15 13 Most Carried 15 | 6 11 11 15 15 15 15 15 15 15 15 15 15 15 15 15 Average Carried 13 | 3 9 9 13 13 14 15 14 13 14 14 14 14 14 14 12 Final Capacity 15 | 8 15 15 15 15 15 15 15 15 15 15 15 15 15 15 5 Final Carried 15 | 6 11 6 14 15 15 15 15 15 15 15 15 15 15 14 4 Class Distribution -------------------- 20% | Mutant 15% | Scavenger-Tank 15% | Scavenger-Mutant 15% | Commander-Mutant 14% | Commander-Tank 12% | Commander-Gunner 3% | Tank Dominant Class ---------------- Mutant | -10/Materials Mutant | -10/Mines Mutant | -9/Materials Scavenger-Mutant | -9/Mines Scavenger-Mutant | -9/Exiles Scavenger-Mutant | -8/Mines Scavenger-Tank | -8/Materials Commander-Tank | -8/Storage Commander-Tank | -8/Recycling Commander-Mutant | -8/Scraptown Commander-Gunner | -6/Factory Scavenger-Tank | -6/Extension Commander-Gunner | -6/Cetus Commander-Gunner | -6/Archives Commander-Gunner | -6/Hub_04(d) Resources | -11 -10 -10 -9 -9 -9 -8 -8 -8 -8 -8 -6 -6 -6 -6 -6 ----------- Run | Yrd Mat Min Mat Min Exi Min Mat Sto Rec Scr Fac Ext Cet Arc Hub Matter Collected 3078 | 238 87 32 230 62 . . 411 332 108 120 156 1018 135 83 66 Remotely . | . . . . . . . . . . . . . . . . Salvage Created 7185 | . 306 102 2035 177 . . 1299 873 114 . 885 1040 71 283 . Parts 358 | . 25 . 140 16 . . 65 27 5 . 37 26 1 16 . Haulers Intercepted 21 | . 2 . 6 . . . 6 6 . . 1 . . . . Recyclers Shooed 6 | . 1 . 2 . . . 1 1 . . 1 . . . . Parts Field Recycled . | . . . . . . . . . . . . . . . . Retrieved Matter . | . . . . . . . . . . . . . . . . Parts Self-Destructed . | . . . . . . . . . . . . . . . . Prevented . | . . . . . . . . . . . . . . . . Kills | -11 -10 -10 -9 -9 -9 -8 -8 -8 -8 -8 -6 -6 -6 -6 -6 ------- Run | Yrd Mat Min Mat Min Exi Min Mat Sto Rec Scr Fac Ext Cet Arc Hub Combat Hostiles Destroyed 130 | . 10 2 45 6 . . 25 12 2 . 12 13 1 2 . Guns 110 | . 10 1 41 6 . . 19 8 2 . 12 8 1 2 . AOE 11 | . . . 3 . . . 4 4 . . . . . . . Classes Destroyed 16 | . 5 . 5 . . . 3 1 . . 1 1 . . . Worker 5 | . 1 . 1 . . . 1 1 . . 1 . . . . Builder 3 | . . . 1 . . . . 1 . . 1 . . . . Hauler 21 | . 2 . 6 . . . 6 6 . . 1 . . . . Recycler 3 | . . . 1 . . . . . . . . 2 . . . Mechanic 1 | . . . . . . . 1 . . . . . . . . Operator 8 | . 1 . 1 . . . 1 1 . . 1 . . 3 . Watcher 3 | . . . 3 . . . . . . . . . . . . Swarmer 32 | . 9 . 14 3 . . 6 . . . . . . . . Grunt 47 | . 1 2 20 3 . . 9 6 1 . 3 2 . . . Brawler 4 | . . . 2 . . . 1 . . . 1 . . . . Duelist 1 | . . . . . . . . 1 . . . . . . . Sentry 31 | . . . 9 . . . 7 4 1 . . 8 . 2 . Hunter 10 | . . . . . . . 1 1 . . 6 2 . . . Programmer 2 | . . . . . . . . . . . 2 . . . . Heavy 1 | . . . . . . . 1 . . . . . . . . Behemoth 1 | . . . . . . . . . . . . 1 . . . Cetus Guard 1 | . . . . . . . . . . . . . 1 . . Best Kill Streak 9 | . 6 1 9 3 . . 6 5 1 . 6 2 1 2 . Combat Bots Only 6 | . 6 1 6 3 . . 6 4 1 . 5 2 1 2 . Max Kills in Single Turn 4 | . 1 1 4 2 . . 2 3 1 . 2 1 1 1 . Gunslinging 1 | . . . 1 1 . . . . . . . . . . . Exploded 3 | . . . 3 . . . 2 3 . . . . . . . Melee . | . . . . . . . . . . . . . . . . Uniques/NPCs Destroyed . | . . . . . . . . . . . . . . . . Combat | -11 -10 -10 -9 -9 -9 -8 -8 -8 -8 -8 -6 -6 -6 -6 -6 -------- Run | Yrd Mat Min Mat Min Exi Min Mat Sto Rec Scr Fac Ext Cet Arc Hub Hostile Shots Fired 1123 | . 44 29 223 27 . . 122 45 1 . 91 366 20 6 149 Missed 385 | . 10 2 69 7 . . 40 8 . . 25 184 8 2 30 Damage Taken 10744 | . 315 845 1707 189 . . 1151 540 27 . 833 1489 278 107 3263 Core 1569 | . 53 167 225 33 . . 163 43 16 . 106 130 56 52 525 Absorbed by Shields 469 | . . . . . . . 72 . . . 162 121 114 . . Ignored by Resistances 657 | . . . 140 15 . . 161 45 3 . 134 159 . . . Regen/Repaired (Parts) 347 | . 50 . . . . . 82 215 . . . . . . . Core Remaining (%) 51 | 100 . 12 . . . 35 . . . 59 . . . . . Volleys Fired 431 | . 29 13 128 10 . . 65 37 2 . 36 65 11 28 7 Largest 3 | . 2 2 2 2 . . 3 3 3 . 3 3 3 3 3 Hottest 222 | . 100 100 112 112 . . 168 173 173 . 178 183 183 203 222 Shots Fired 1089 | . 58 26 256 20 . . 190 105 8 . 104 185 34 87 16 Gun 1079 | . 58 26 256 20 . . 187 101 8 . 102 185 34 87 15 Cannon . | . . . . . . . . . . . . . . . . Launcher 10 | . . . . . . . 3 4 . . 2 . . . 1 Special . | . . . . . . . . . . . . . . . . Kinetic . | . . . . . . . . . . . . . . . . Thermal 1079 | . 58 26 256 20 . . 187 101 8 . 102 185 34 87 15 Explosive 10 | . . . . . . . 3 4 . . 2 . . . 1 Electromagnetic . | . . . . . . . . . . . . . . . . Robot Hit Streak 21 | . 8 8 14 13 . . 15 11 4 . 18 21 6 13 3 Robot Miss Streak 5 | . 4 2 4 2 . . 3 4 2 . 2 4 4 3 5 Penetration Max . | . . . . . . . . . . . . . . . . Secondary Targets 17 | . . . 7 1 . . 3 1 . . 4 1 . . . Max Gunslinging Chain 1 | . . . 1 1 . . 1 1 . . 1 1 . . . Shots Hit Robots 779 | . 33 21 165 11 . . 135 61 11 4 80 174 22 54 8 Core Hits 326 | . 18 6 84 8 . . 54 40 2 . 40 39 8 20 7 Critical Kills . | . . . . . . . . . . . . . . . . Critical Parts Destroyed . | . . . . . . . . . . . . . . . . Critical Strikes 62 | . 3 4 8 . . . 11 4 . . 3 21 3 4 1 Burn 62 | . 3 4 8 . . . 11 4 . . 3 21 3 4 1 Melee Attacks 56 | . . . . . . . 4 1 7 4 . 38 1 . 1 Impact 5 | . . . . . . . 4 1 . . . . . . . Slashing 1 | . . . . . . . . . . . . . . . 1 Piercing . | . . . . . . . . . . . . . . . . Sneak Attacks 49 | . . . . . . . 1 . 7 4 . 36 1 . . Combat Hostiles 6 | . . . . . . . . . 6 . . . . . . Follow-up Attacks . | . . . . . . . . . . . . . . . . Damage Inflicted 15434 | . 417 291 3131 196 . . 2953 1495 86 . 1703 2913 640 1214 395 Guns 13520 | . 407 282 2480 173 . . 2337 1151 86 . 1694 2876 640 1214 180 Cannons . | . . . . . . . . . . . . . . . . Explosions 1612 | . . . 578 . . . 481 339 . . 9 . . . 205 Melee 120 | . . . . . . . 120 . . . . . . . . Ramming 182 | . 10 9 73 23 . . 15 5 . . . 37 . . 10 Kinetic . | . . . . . . . . . . . . . . . . Thermal 14256 | . 407 282 3058 173 . . 2495 1151 86 . 1694 2876 640 1214 180 Explosive 876 | . . . . . . . 323 339 . . 9 . . . 205 Electromagnetic . | . . . . . . . . . . . . . . . . Impact 120 | . . . . . . . 120 . . . . . . . . Slashing . | . . . . . . . . . . . . . . . . Piercing . | . . . . . . . . . . . . . . . . Highest Corruption 20 | . . . 1 1 1 1 8 8 8 . 1 2 2 2 20 Average Corruption 4 | . . . 1 1 1 1 5 8 8 . 1 1 2 1 11 Corruption Purged 2 | . . . . . . . . . . . . . . 2 . Corruption Blocked . | . . . . . . . . . . . . . . . . Effects 159 | . . . 4 9 1 1 32 42 38 . 1 17 4 5 5 Message Errors 38 | . . . 2 2 . . 11 12 7 . 1 3 . . . Matter Fused 33 | . . . 1 2 1 . 6 10 5 . . 4 2 2 . Heat Flow Errors 16 | . . . . 2 . . 5 . 8 . . 1 . . . Energy Discharges 23 | . . . 1 1 . . 3 4 7 . . 4 1 . 2 Parts Fused 1 | . . . . . . . . 1 . . . . . . . Data Loss (minor) 18 | . . . . 2 . 1 3 6 5 . . . . . 1 Data Loss (major) 9 | . . . . . . . 1 2 4 . . 2 . . . Misfires 13 | . . . . . . . 2 4 2 . . 1 1 3 . Alerts 2 | . . . . . . . 1 1 . . . . . . . Misdirections 1 | . . . . . . . . . . . . . . . 1 Weapon Failures 5 | . . . . . . . . 2 . . . 2 . . 1 Overload Shots . | . . . . . . . . . . . . . . . . Overflow Damage 95 | . . . 90 . . . . 5 . . . . . . . Projectiles . | . . . . . . . . . . . . . . . . Explosions 95 | . . . 90 . . . . 5 . . . . . . . Melee . | . . . . . . . . . . . . . . . . Knockbacks 1 | . . . . . . . . . . . . 1 . . . Impact 1 | . . . . . . . . . . . . 1 . . . Kinetic . | . . . . . . . . . . . . . . . . Secondary . | . . . . . . . . . . . . . . . . Self-Inflicted Damage 100 | . . . . . . . 73 27 . . . . . . . Shots 4 | . . . . . . . 3 1 . . . . . . . Rammed 3 | . 2 1 . . . . . . . . . . . . . Targets Rammed 31 | . 2 2 14 3 . . 5 1 . . . 2 . . 2 Kicked 28 | . . 1 14 3 . . 5 1 . . . 2 . . 2 Crushed . | . . . . . . . . . . . . . . . . Highest Temperature 361 | . 336 160 192 146 . . 358 361 148 . 251 103 . 8 . Average Temperature 80 | . 93 65 51 52 . . 101 142 63 . 113 37 . 6 . Received Heat Transfer 2534 | . 6 84 681 63 . . 483 225 9 . 190 420 13 9 351 Effects 2 | . . . . . . . . 2 . . . . . . . Energy Bleed 1 | . . . . . . . . 1 . . . . . . . Damage (minor) 1 | . . . . . . . . 1 . . . . . . . Siege Activations . | . . . . . . . . . . . . . . . . Robots Corrupted . | . . . . . . . . . . . . . . . . Combat Hostiles . | . . . . . . . . . . . . . . . . Parts Fried . | . . . . . . . . . . . . . . . . Impact Corruptions . | . . . . . . . . . . . . . . . . Robots Melted 9 | . . 1 1 . . . 2 . . . . 5 . . . Combat Hostiles 9 | . . 1 1 . . . 2 . . . . 5 . . . Parts Melted 93 | . 3 3 17 . . . 24 7 2 . 18 15 . 4 . Heat Transferred 32851 | . 1323 1110 7066 407 . . 5959 2775 185 . 3359 6709 1183 2405 370 Parts Sabotaged . | . . . . . . . . . . . . . . . . Parts Stolen . | . . . . . . . . . . . . . . . . Parts Stripped . | . . . . . . . . . . . . . . . . Power Chain Reactions . | . . . . . . . . . . . . . . . . Alert | -11 -10 -10 -9 -9 -9 -8 -8 -8 -8 -8 -6 -6 -6 -6 -6 ------- Run | Yrd Mat Min Mat Min Exi Min Mat Sto Rec Scr Fac Ext Cet Arc Hub Peak Influence 791 | . 250 64 791 354 . . 422 461 252 . 539 494 644 483 659 Initial 294 | . . 9 1 294 . . . 178 145 . . 200 276 257 46 Average 263 | . 58 36 359 211 . . 258 342 147 . 323 250 490 350 256 Maximum Alert Level 3 | . 1 . 3 1 . . 2 2 1 . 2 2 2 2 2 Low Security (%) 39 | 100 95 100 31 60 . 100 34 3 77 . 7 34 . 6 48 Level 1 42 | . 4 . 30 39 . . 59 78 22 . 70 50 39 50 17 Level 2 15 | . . . 24 . . . 6 17 . . 22 14 60 42 33 Level 3 2 | . . . 12 . . . . . . . . . . . . Level 4 . | . . . . . . . . . . . . . . . . Level 5 . | . . . . . . . . . . . . . . . . High Security . | . . . . . . . . . . . . . . . . Max Security . | . . . . . . . . . . . . . . . . Squads Dispatched 30 | . . . 8 . . . 3 4 . . 7 1 1 . 6 Investigation 7 | . . . 1 . . . . . . . 3 . 1 . 2 Extermination 2 | . . . . . . . . . . . 2 . . . . Reinforcement 15 | . . . 5 . . . 3 2 . . 2 1 . . 2 Assault 5 | . . . 2 . . . . 2 . . . . . . 1 Garrison 1 | . . . . . . . . . . . . . . . 1 Intercept . | . . . . . . . . . . . . . . . . Searches Triggered . | . . . . . . . . . . . . . . . . Construction Impeded 2 | . . . . . . . . . . . 2 . . . . Haulers Reinforced . | . . . . . . . . . . . . . . . . Active Scanning Responses . | . . . . . . . . . . . . . . . . Cargo Convoy Interrupts . | . . . . . . . . . . . . . . . . Stealth | -11 -10 -10 -9 -9 -9 -8 -8 -8 -8 -8 -6 -6 -6 -6 -6 --------- Run | Yrd Mat Min Mat Min Exi Min Mat Sto Rec Scr Fac Ext Cet Arc Hub Distress Signals 19 | . 1 . 5 . . . 5 2 . . 2 1 2 . 1 Communications Jammed . | . . . . . . . . . . . . . . . . Distress Signals . | . . . . . . . . . . . . . . . . Times Spotted 309 | . 23 8 72 7 . . 56 21 2 . 25 32 10 25 28 Peak Tracking Total 14 | . 6 4 7 4 . . 6 6 1 . 5 6 5 2 14 Tactical Retreats 6 | . 2 1 3 . . . . . . . . . . . . Traps | -11 -10 -10 -9 -9 -9 -8 -8 -8 -8 -8 -6 -6 -6 -6 -6 ------- Run | Yrd Mat Min Mat Min Exi Min Mat Sto Rec Scr Fac Ext Cet Arc Hub Traps Triggered 8 | . 1 . 1 . . . 2 3 . . . 1 . . . Indirectly . | . . . . . . . . . . . . . . . . Trap Hack Attempts 67 | . . . . . . . 39 22 . . . 6 . . . Triggered . | . . . . . . . . . . . . . . . . Disarmed 6 | . . . 6 . . . . . . . . . . . . Reprogrammed 11 | . 6 . . . . . 1 3 . . . 1 . . . Reused 3 | . . . . . . . 1 . . . . 2 . . . Traps Extracted . | . . . . . . . . . . . . . . . . Installed 2 | . . . . . . . . . . . 1 1 . . . Triggered 3 | . . . . . . . 1 . . . . 2 . . . Most Traps Carried 2 | . . . . . . . . . . . 2 2 1 1 1 Machines | -11 -10 -10 -9 -9 -9 -8 -8 -8 -8 -8 -6 -6 -6 -6 -6 ---------- Run | Yrd Mat Min Mat Min Exi Min Mat Sto Rec Scr Fac Ext Cet Arc Hub Machines Disabled 15 | . . . 3 . . . 3 1 . . . 3 1 3 1 Max in Single Turn 3 | . . . 3 . . . 2 1 . . . . 1 1 . Garrison Access 4 | . . . . . . . 1 1 . . 1 . . . 1 Network Hub 2 | . . . . . . . . . . . . . . . 2 Machines Repaired . | . . . . . . . . . . . . . . . . Machines Dismantled 1 | . . . . . . . . . . . . . 1 . . Machines Sabotaged 1 | . . . . . . . . . . . . . . . 1 Overloaded Fab Kills . | . . . . . . . . . . . . . . . . Hacking | -11 -10 -10 -9 -9 -9 -8 -8 -8 -8 -8 -6 -6 -6 -6 -6 --------- Run | Yrd Mat Min Mat Min Exi Min Mat Sto Rec Scr Fac Ext Cet Arc Hub Machines Accessed 61 | . 7 . 7 . . . 13 12 3 2 8 5 1 . 3 Terminals 44 | . 6 . 6 . . . 9 7 3 . 5 5 1 . 2 Fabricators . | . . . . . . . . . . . . . . . . Repair Stations 6 | . 1 . 1 . . . 1 2 . . 1 . . . . Recycling Units 4 | . . . . . . . 1 2 . . 1 . . . . Scanalyzers 1 | . . . . . . . 1 . . . . . . . . Garrison Access 4 | . . . . . . . 1 1 . . 1 . . . 1 Total Hacks 162 | . 29 . 26 . . . 29 29 8 8 17 9 2 . 5 Successful 76 | . 14 . 12 . . . 15 13 3 8 5 4 . . 2 Failed 85 | . 14 . 14 . . . 14 16 5 . 12 5 2 . 3 Catastrophic 11 | . . . 1 . . . 2 1 1 . 2 2 1 . 1 Database Lockouts 1 | . 1 . . . . . . . . . . . . . . Manual 100 | . 19 . 23 . . . 21 17 5 . 9 4 1 . 1 Terminals 120 | . 27 . 24 . . . 23 16 8 . 8 9 2 . 3 Fabricators . | . . . . . . . . . . . . . . . . Repair Stations 15 | . 2 . 2 . . . 2 4 . . 5 . . . . Recycling Units 10 | . . . . . . . 2 6 . . 2 . . . . Scanalyzers 1 | . . . . . . . 1 . . . . . . . . Garrison Access 8 | . . . . . . . 1 3 . . 2 . . . 2 Terminal Hacks 29 | . 6 . 3 . . . 3 4 . 8 1 3 . . 1 Robot Analysis 10 | . 2 . 1 . . . . . . 7 . . . . . Prototype ID Bank 1 | . . . . . . . 1 . . . . . . . . Open Door 5 | . . . . . . . . 2 . . . 3 . . . Branch Access Points 1 | . . . . . . . . . . . 1 . . . . Unreport Threat 2 | . . . . . . . 1 1 . . . . . . . Locate Traps 6 | . 3 . 1 . . . 1 1 . . . . . . . Disarm Traps 1 | . . . 1 . . . . . . . . . . . . Reprogram Traps 1 | . 1 . . . . . . . . . . . . . . Zone Layout 1 | . . . . . . . . . . . . . . . 1 Derelict Proto ID Bank 1 | . . . . . . . . . . 1 . . . . . Fabricator Hacks . | . . . . . . . . . . . . . . . . Repair Station Hacks 10 | . 2 . 1 . . . 2 4 . . 1 . . . . Scan Component 5 | . 1 . . . . . 1 2 . . 1 . . . . Repair 4 | . 1 . . . . . 1 2 . . . . . . . Refit 1 | . . . 1 . . . . . . . . . . . . Recycling Unit Hacks 2 | . . . . . . . 1 . . . 1 . . . . Retrieve Components 2 | . . . . . . . 1 . . . 1 . . . . Scanalyzer 1 | . . . . . . . 1 . . . . . . . . Insert Component 1 | . . . . . . . 1 . . . . . . . . Garrison Access Hacks 2 | . . . . . . . 1 1 . . . . . . . Seal Access 2 | . . . . . . . 1 1 . . . . . . . Unauthorized Hacks 32 | . 6 . 8 . . . 7 4 3 . 2 1 . . 1 Terminals 29 | . 6 . 8 . . . 7 3 3 . . 1 . . 1 Botnet 4 | . 1 . 1 . . . 1 . 1 . . . . . . Disrupt 2 | . . . 1 . . . . . . . . 1 . . . Skim 22 | . 5 . 6 . . . 6 3 2 . . . . . . Sabotage 1 | . . . . . . . . . . . . . . . 1 Fabricators . | . . . . . . . . . . . . . . . . Repair Stations . | . . . . . . . . . . . . . . . . Recycling Units 2 | . . . . . . . . 1 . . 1 . . . . Reject 2 | . . . . . . . . 1 . . 1 . . . . Scanalyzers . | . . . . . . . . . . . . . . . . Garrison Access 1 | . . . . . . . . . . . 1 . . . . Jam 1 | . . . . . . . . . . . 1 . . . . Data Cores Recovered 3 | . 1 . . . . . . . . . 1 . . . 1 Used . | . . . . . . . . . . . . . . . . Hacking Detections 49 | . 7 . 6 . . . 11 10 3 . 6 3 1 . 2 Full Trace Events 5 | . . . . . . . . . 1 . 2 . 1 . 1 Feedback Events . | . . . . . . . . . . . . . . . . Feedback Blocked . | . . . . . . . . . . . . . . . . Robot Schematics Acquired . | . . . . . . . . . . . . . . . . Robots Built . | . . . . . . . . . . . . . . . . Authchips . | . . . . . . . . . . . . . . . . Time . | . . . . . . . . . . . . . . . . Total Robot Build Rating . | . . . . . . . . . . . . . . . . Part Schematics Acquired . | . . . . . . . . . . . . . . . . Parts Built . | . . . . . . . . . . . . . . . . Authchips . | . . . . . . . . . . . . . . . . Time . | . . . . . . . . . . . . . . . . Total Part Build Rating . | . . . . . . . . . . . . . . . . Parts Repaired 4 | . 1 . . . . . 1 2 . . . . . . . Time 134 | . 26 . . . . . 51 57 . . . . . . . Parts Recycled . | . . . . . . . . . . . . . . . . Recycled Matter . | . . . . . . . . . . . . . . . . Retrieved Matter . | . . . . . . . . . . . . . . . . Retrieved Components 10 | . . . . . . . 10 . . . . . . . . Parts Scanalyzed . | . . . . . . . . . . . . . . . . Part Schematics Acquired . | . . . . . . . . . . . . . . . . Parts Damaged . | . . . . . . . . . . . . . . . . Bothacking | -11 -10 -10 -9 -9 -9 -8 -8 -8 -8 -8 -6 -6 -6 -6 -6 ------------ Run | Yrd Mat Min Mat Min Exi Min Mat Sto Rec Scr Fac Ext Cet Arc Hub Used RIF Installer . | . . . . . . . . . . . . . . . . Robots Hacked 8 | . . . . . . . . . . 4 . 3 1 . . Non-combat 1 | . . . . . . . . . . . . 1 . . . Combat 7 | . . . . . . . . . . 4 . 2 1 . . Robot Hacks Applied 8 | . . . . . . . . . . 4 . 3 1 . . parse_system 7 | . . . . . . . . . . 4 . 2 1 . . no_distress 1 | . . . . . . . . . . . . 1 . . . Relay Couplers Released 2 | . . . . . . . . . . . . . . . 2 Machine Destruction 2 | . . . . . . . . . . . . . . . 2 Fabnet Peak Effective % . | . . . . . . . . . . . . . . . . Robots Rewired 22 | . . . . . . . . . 6 . . 16 . . . Allies Hacked . | . . . . . . . . . . . . . . . . Hacks Repelled . | . . . . . . . . . . . . . . . . Allies | -11 -10 -10 -9 -9 -9 -8 -8 -8 -8 -8 -6 -6 -6 -6 -6 -------- Run | Yrd Mat Min Mat Min Exi Min Mat Sto Rec Scr Fac Ext Cet Arc Hub Total Allies 50 | . . . . 3 . . . 12 6 . . 24 5 . . Largest Group 24 | . . . . 3 3 3 3 10 11 11 11 24 19 13 10 Highest-Rated Group 904 | . . . . 40 40 40 40 184 236 236 236 904 864 853 616 Highest-Rated Ally 159 | . . . . 16 16 16 16 31 34 34 34 159 159 159 96 Total Orders 7 | . . . . . . . . 2 . 3 . . 2 . . STAY 2 | . . . . . . . . 1 . . . . 1 . . FOLLOW 3 | . . . . . . . . 1 . 1 . . 1 . . PICKUP 1 | . . . . . . . . . . 1 . . . . . COLLECT 1 | . . . . . . . . . . 1 . . . . . Ally Attacks 537 | . . . . . . . 64 77 24 . 61 108 107 23 73 Total Damage 11608 | . . . . . . . 618 972 418 . 1191 2554 2952 618 2285 Kills 80 | . . . . . . . 11 10 6 . 10 13 17 2 11 Allies Corrupted 4 | . . . . . . . . . . . . . . . 4 Allies Melted 1 | . . . . . . . . . . . . . . . 1 Intel | -11 -10 -10 -9 -9 -9 -8 -8 -8 -8 -8 -6 -6 -6 -6 -6 ------- Run | Yrd Mat Min Mat Min Exi Min Mat Sto Rec Scr Fac Ext Cet Arc Hub Robot Analysis Total 10 | . 2 . 1 . . . . . . 7 . . . . . Derelict Logs Recovered 3 | . . 1 . 2 . . . . . . . . . . . Drone Launches . | . . . . . . . . . . . . . . . . Drone Recoveries . | . . . . . . . . . . . . . . . . Exploration | -11 -10 -10 -9 -9 -9 -8 -8 -8 -8 -8 -6 -6 -6 -6 -6 ------------- Run | Yrd Mat Min Mat Min Exi Min Mat Sto Rec Scr Fac Ext Cet Arc Hub Turns Passed 16996 | 89 1400 225 2850 1003 234 41 2158 1424 1052 2668 917 1528 285 860 262 Spaces Moved 8050 | 50 712 84 1126 501 122 20 904 601 531 1339 608 917 160 220 155 Core 68 | 4 . 2 . . . . . . . . . . . 38 24 Treads 820 | 46 712 62 . . . . . . . . . . . . . Legs 7162 | . . 20 1126 501 122 20 904 601 531 1339 608 917 160 182 131 Wheels . | . . . . . . . . . . . . . . . . Hover . | . . . . . . . . . . . . . . . . Flight . | . . . . . . . . . . . . . . . . Fastest Speed 50 | 50 160 160 120 190 190 190 190 190 123 123 120 120 120 120 120 Average Speed 173 | 151 160 173 179 190 190 190 190 190 186 192 121 120 120 306 125 Slowest Speed 1200 | 160 160 400 190 190 190 190 260 193 193 193 122 120 120 1200 190 Overloaded Moves . | . . . . . . . . . . . . . . . . Propulsion Burnouts . | . . . . . . . . . . . . . . . . Robots Hopped . | . . . . . . . . . . . . . . . . Cave-ins Triggered . | . . . . . . . . . . . . . . . . Exploration Rate (%) 58 | 5 89 16 87 86 26 10 84 90 92 88 19 66 67 76 27 Regions Visited 15 Branch Regions 11 Pre-discovered Areas 6 | . 1 . 1 . . . 4 . . . . . . . . Known Exits Taken 7 | . . 1 1 . . 1 1 . 1 1 1 . . . . Unknown Exits Taken 8 | 1 1 . . 1 1 . . 1 . . . 1 1 1 . Scrap Searched 9 | . . 1 . 3 . . . . . 5 . . . . . Spaces Dug 30 | . . . . . . . 14 . . . 15 . . . 1 Terrain Destroyed 135 | . . . 42 . . . 26 44 . . 15 . . . 8 Melee 3 | . . . . . . . 2 . . . . . . . 1 Projectile . | . . . . . . . . . . . . . . . . AOE 132 | . . . 42 . . . 24 44 . . 15 . . . 7 Terrain Rammed . | . . . . . . . . . . . . . . . . Walls Destroyed . | . . . . . . . . . . . . . . . . Machines Disabled . | . . . . . . . . . . . . . . . . Actions | -11 -10 -10 -9 -9 -9 -8 -8 -8 -8 -8 -6 -6 -6 -6 -6 --------- Run | Yrd Mat Min Mat Min Exi Min Mat Sto Rec Scr Fac Ext Cet Arc Hub Total 10158 | 61 916 136 1690 530 124 23 1186 795 588 1435 706 1202 212 344 210 Wait 1109 | . 151 33 359 6 . 4 109 77 36 60 30 119 10 84 31 Move 8035 | 49 711 83 1125 500 121 19 903 600 530 1338 607 916 159 219 155 Hop . | . . . . . . . . . . . . . . . . Pick Up 95 | 6 8 . 20 2 1 . 13 8 1 7 9 14 4 1 1 Fast Attach 51 | 6 2 . 10 . . . 7 4 . 6 2 6 3 4 1 Attach 48 | . 1 5 8 1 1 . 6 3 . 2 6 8 . . 7 Detach 19 | . 1 . 4 . . . . 2 . 2 3 4 1 1 1 Swap 89 | . 4 . 8 4 1 . 19 18 5 4 6 11 7 1 1 Drop 96 | . 7 . 14 4 . . 16 7 2 12 6 11 8 6 3 Fire 431 | . 29 13 128 10 . . 65 37 2 . 36 65 11 28 7 Melee 56 | . . . . . . . 4 1 7 4 . 38 1 . 1 Ram . | . . . . . . . . . . . . . . . . Kick 28 | . . 1 14 3 . . 5 1 . . . 2 . . 2 Crush 3 | . 2 1 . . . . . . . . . . . . . Escape Stasis 15 | . . . . . . . . 15 . . . . . . . Rewire 6 | . . . . . . . . . 5 . . 1 . . . Trap 69 | . . . . . . . 39 22 . . 1 7 . . . Miscellaneous 8 | . . . . . . . . . . . . . 8 . . Route ------- -11/Scrapyard -10/Materials (discovered 6 exits: *Mat x3 / [*Min x2] / [*Sub]) -10/Mines -9/Materials (discovered 5 exits: *Mat x3 / *Min x2) -9/Mines (discovered 4 exits: *Mat x2 / [*Exi] / [*Zio]) -9/Exiles -8/Mines -8/Materials (discovered 4 exits: *Fac x3 / *Sto) -8/Storage (discovered 2 exits: *Fac / *Rec) -8/Recycling (discovered 2 exits: *Fac / *Scr) -8/Scraptown (discovered 2 exits: *Fac x2) -6/Factory (discovered 7 exits: *Fac x3 / Low x2 / *Ext x2) -6/Extension (discovered 2 exits: *Fac / *Cet) -6/Cetus (discovered 2 exits: *Fac / [*Arc]) -6/Archives (discovered 2 exits: *Fac / *Hub) -6/Hub_04(d) (discovered 1 exit: *Fac) History --------- Turn | Location | Event 13 | -11/Scrapyard | Discovered new exit (range 15) 90 | -11/Scrapyard | Entered Materials 283 | -10/Materials | Discovered new exit (range 4) 309 | -10/Materials | Build established: Mutant 448 | -10/Materials | Discovered new exit (range 8) 623 | -10/Materials | Discovered new exit (range 15) 812 | -10/Materials | Central database locked down 915 | -10/Materials | Discovered new exit (range 13) 1088 | -10/Materials | Learned 4 Subcaves zone layouts 1116 | -10/Materials | Repaired Lgt. Treads 1167 | -10/Materials | Identified exit to Materials 1167 | -10/Materials | Learned location of 1 exit from Materials 1234 | -10/Materials | Learned location of Storage (-8) 1290 | -10/Materials | Learned location of 3 exits from Materials 1368 | -10/Materials | Learned Storage emergency access door positions 1413 | -10/Materials | Learned Storage security intel 1490 | -10/Materials | Entered Mines 1497 | -10/Mines | Discovered exit to Materials (range 5) 1609 | -10/Mines | Learned location of 1 exit from Materials 1628 | -10/Mines | Assembled infested the area 1633 | -10/Mines | Assisted by a Guerilla fighting off Assembled 1659 | -10/Mines | Core integrity fell below 50% 1663 | -10/Mines | Core integrity fell below 20% 1698 | -10/Mines | Lost 6 parts (1p3n1u1w) 1715 | -10/Mines | Entered Materials 1715 | -9/Materials | Evolved 2 slots: Propulsion x1, Utility x1 1716 | -9/Materials | Identified exit to Materials 1716 | -9/Materials | Identified exit to Mines 3957 | -9/Materials | Build established: Scavenger-Mutant 4115 | -9/Materials | First assault squad dispatched 4201 | -9/Materials | Core integrity fell below 50% 4453 | -9/Materials | Learned location of 2 exits from Materials 4499 | -9/Materials | Learned 4 Recycling zone layouts 4528 | -9/Materials | Learned Materials stockpile data 4558 | -9/Materials | Learned location of Zion (-7) 4565 | -9/Materials | Entered Mines 4634 | -9/Mines | A Derelict revealed a hidden shortcut to a safe place 4895 | -9/Mines | Learned Materials stockpile data 5227 | -9/Mines | Received a Rocket Launcher from a helpful Derelict 5474 | -9/Mines | Learned location of 1 exit from Materials 5512 | -9/Mines | Assisted by bots powering up and referring to "LRC-V3" 5556 | -9/Mines | Deemed a non-threat by the Exiles lab entrance 5558 | -9/Mines | Discovered new exit (range 5) 5568 | -9/Mines | Entered Exiles 5568 | -9/Exiles | Found Exiles lab abandoned 5568 | -9/Exiles | Accompanied by 3 allies 5775 | -9/Exiles | Discovered new exit (range 14) 5802 | -9/Exiles | Entered Mines 5802 | -8/Mines | Accompanied by 3 allies 5827 | -8/Mines | Discovered exit to Materials (range 5) 5843 | -8/Mines | Entered Materials 5843 | -8/Materials | Accompanied by 3 allies 5843 | -8/Materials | Evolved 2 slots: Utility x1, Weapon x1 5844 | -8/Materials | Identified exit to Factory 5844 | -8/Materials | Identified exit to Storage 6167 | -8/Materials | Build established: Scavenger-Tank 6587 | -8/Materials | Discovered exit to Factory (range 16) 7688 | -8/Materials | Repaired Cld. Ion Engine 7711 | -8/Materials | Learned location of Lower Caves (-7) 7755 | -8/Materials | Learned location of 2 exits from Factory 7845 | -8/Materials | Learned Factory trap positions 7863 | -8/Materials | Learned Storage trap positions 8001 | -8/Materials | Entered Storage 8003 | -8/Storage | Loaded intel: 24 trap records 8229 | -8/Storage | Repaired Reactive Plating 8409 | -8/Storage | Assisted by bots powering up and referring to "LRC-V3" 9022 | -8/Storage | Build established: Commander-Tank 9291 | -8/Storage | Repaired Carbon-fiber Leg 9379 | -8/Storage | Met a pair of Derelict thieves 9414 | -8/Storage | Used back door to open Recycling access 9414 | -8/Storage | Discovered new exit (range 5) 9425 | -8/Storage | Entered Recycling 9425 | -8/Recycling | Accompanied by 5 allies 9426 | -8/Recycling | Identified exit to Factory 9427 | -8/Recycling | Identified exit to Scraptown 10410 | -8/Recycling | Scanned before Scraplab entrance 10441 | -8/Recycling | Entered Scraplab 10477 | -8/Recycling | Entered Scraptown 10477 | -8/Scraptown | Accompanied by 11 allies 10477 | -8/Scraptown | System corruption cleaned by C-Scrubber 10670 | -8/Scraptown | Build established: Commander-Mutant 10811 | -8/Scraptown | Heard Great Nut preacher, LISTEN AND RECITE! 11031 | -8/Scraptown | Visited Red Mages 11137 | -8/Scraptown | Visited Spacefarers 11193 | -8/Scraptown | Visited IN-MT5's Study 11272 | -8/Scraptown | Visited Awakened 11307 | -8/Scraptown | Visited Shadow of the Wyrm 11576 | -8/Scraptown | Visited Cyclists 11603 | -8/Scraptown | Visited UFD Registry 11603 | -8/Scraptown | Registered with UFD as "Smoothskull" 11640 | -8/Scraptown | Entered Cyclist Reading Room 11767 | -8/Scraptown | Visited Analyses Database 11817 | -8/Scraptown | Visited Science Guys 11885 | -8/Scraptown | Visited Research Penetration Think Tank 11933 | -8/Scraptown | Visited Scrapoid Pod Storage 11956 | -8/Scraptown | Visited DA-N13 Charitable Foundation 11974 | -8/Scraptown | Found DCF Scrap (30 items) 12058 | -8/Scraptown | Visited Infowarlord's Domain 12074 | -8/Scraptown | Found Exp. Terrain Scan Processor 12112 | -8/Scraptown | Visited Curators Association 12181 | -8/Scraptown | Visited Junk Repository 12251 | -8/Scraptown | Visited Junk Repository 12301 | -8/Scraptown | Visited Science Testing Area 12666 | -8/Scraptown | Found Scrapoid Pod 12867 | -8/Scraptown | Build established: Commander-Tank 13145 | -8/Scraptown | Entered Factory 13145 | -6/Factory | Accompanied by 11 allies 13145 | -6/Factory | Evolved 4 slots: Power x1, Propulsion x1, Utility x2 13146 | -6/Factory | Identified exit to Factory 13147 | -6/Factory | Identified exit to Lower Caves 13148 | -6/Factory | Loaded intel: 122 trap records 13250 | -6/Factory | Discovered exit to Factory (range 3) 13446 | -6/Factory | Build established: Commander-Gunner 13595 | -6/Factory | Lost 5 allies 13791 | -6/Factory | Lost 3 allies 14009 | -6/Factory | Build established: Scavenger-Tank 14033 | -6/Factory | Identified exit to Extension 14062 | -6/Factory | Entered Extension 14868 | -6/Extension | Rescued A7 14947 | -6/Extension | Rescued a captive Derelict 15057 | -6/Extension | Scrapoid Pod released 06E05-D (x5) 15101 | -6/Extension | Rescued a captive Derelict 15137 | -6/Extension | Disrupted transfer network 15341 | -6/Extension | Spotted B-75 Beast 15357 | -6/Extension | Spotted B-75 Beast 15366 | -6/Extension | Destroyed B-75 Beast 15396 | -6/Extension | Lost 3 allies 15557 | -6/Extension | Discovered new exit (range 16) 15558 | -6/Extension | Discovered exit to Factory (range 15) 15590 | -6/Extension | Entered Cetus 15590 | -6/Cetus | Accompanied by 20 allies (A7) 15595 | -6/Cetus | Acquired a Cetus Manufacturing Module code from A7 15601 | -6/Cetus | Spotted Cetus Guard 15601 | -6/Cetus | Spotted Cetus Guard 15605 | -6/Cetus | Spotted Cetus Guard 15606 | -6/Cetus | Spotted Cetus Guard 15613 | -6/Cetus | Destroyed Cetus Guard 15616 | -6/Cetus | Allies destroyed Cetus Guard 15619 | -6/Cetus | Allies destroyed Cetus Guard 15626 | -6/Cetus | Allies destroyed Cetus Guard 15660 | -6/Cetus | Lost 6 allies 15666 | -6/Cetus | Build established: Commander-Gunner 15685 | -6/Cetus | Started Cetus Manufacturing Module 15710 | -6/Cetus | Manufactured an Enhanced Grunt 15730 | -6/Cetus | Escorted A7 to Cetus Mainframe 15735 | -6/Cetus | Manufactured an Enhanced Grunt 15746 | -6/Cetus | Discovered new exit (range 15) 15760 | -6/Cetus | Manufactured an Enhanced Grunt 15767 | -6/Cetus | Spotted Cetus Guard 15767 | -6/Cetus | Spotted Cetus Guard 15771 | -6/Cetus | Spotted Cetus Guard 15777 | -6/Cetus | Spotted Cetus Guard 15783 | -6/Cetus | Allies destroyed Cetus Guard 15785 | -6/Cetus | Manufactured an Enhanced Grunt 15790 | -6/Cetus | Allies destroyed Cetus Guard 15792 | -6/Cetus | Allies destroyed Cetus Guard 15795 | -6/Cetus | Allies destroyed Cetus Guard 15798 | -6/Cetus | Discovered exit to Factory (range 16) 15810 | -6/Cetus | Manufactured an Enhanced Grunt 15811 | -6/Cetus | Met Revision 17 15823 | -6/Cetus | Lost 6 allies 15875 | -6/Cetus | Entered Archives 15875 | -6/Archives | Accompanied by 13 allies (A7) 15880 | -6/Archives | Received a hacking code to weaken MAIN.C 15930 | -6/Archives | Discovered new exit (range 16) 15995 | -6/Archives | Discovered exit to Factory (range 15) 16735 | -6/Archives | Entered Hub_04(d) 16735 | -6/Hub_04(d) | Accompanied by 10 allies 16823 | -6/Hub_04(d) | Discovered exit to Factory (range 16) 16905 | -6/Hub_04(d) | Garrison activated, responded to threat 16910 | -6/Hub_04(d) | Network Hub disabled 16933 | -6/Hub_04(d) | Network Hub disabled 16933 | -6/Hub_04(d) | Spotted Lightning 16936 | -6/Hub_04(d) | Spotted Lightning 16938 | -6/Hub_04(d) | Spotted Lightning 16946 | -6/Hub_04(d) | Spotted Lightning 16949 | -6/Hub_04(d) | Core integrity fell below 50% 16953 | -6/Hub_04(d) | Lost 8 allies 16953 | -6/Hub_04(d) | System corruption reached 10% 16965 | -6/Hub_04(d) | Core integrity fell below 20% 16974 | -6/Hub_04(d) | Spotted Lightning 16974 | -6/Hub_04(d) | Spotted Lightning 16997 | -6/Hub_04(d) | Destroyed by Lightning with EMDS Last Messages --------------- 16972_ Arm. Leg destroyed. 16973_ Penetrated by EMDS Slug. 16974_ T-07 Excavator exits level. 16974_ Penetrated by EMDS Slug. 16977_ Acquired 5 matter. 16980_ System corrupted: Component data lost. 16980_ Acquired 10 matter. 16993_ K-01 Serf collects debris. 16993_ EMDS Slug penetrates Garrison Access. 16993_ Penetrated by EMDS Slug. 16993_ K-01 Serf destroyed. 16994_ U-05 Engineer lays Concrete. 16994_ Penetrated by EMDS Slug. 16995_ U-05 Engineer lays Concrete. 16995_ K-01 Serf collects debris. 16995_ Penetrated by EMDS Slug. 16996_ U-05 Engineer lays Concrete. 16996_ K-01 Serf collects debris. 16997_ U-05 Engineer lays Concrete. 16997_ Penetrated by EMDS Slug. Map ----- +----------------------------------------------------+ | # ?????????????????????????????????????????? | | # ?????????????????????????????????????????? | | + "?????????????????????????????????????????? | | # "?????????????????????????????????????????? | | # "?????????????????????????????????????????? | | # "?????????????????????????????????????????? | | # ?????????????????????????????????????????? | | ####?#?????????????????????????????????????????? | | #??# #??????? ????????????????????? ??????? | | #??# #????? #???????????????????? #?????? | | #??# #????# #???????????????????# ?????? | | #??# #????# #???????????????????# ????? | | ########??# #???????????????????# "????? | | # ## #???????????????????# #????? | | # " " " ## #???????????????????+ +????? | | # " " " ## #???????????????????# #??#### | | # " " " ## #???????????????????# #??# | | # ## #????????############ #??# " | | ### " " " ## #????????# b = ## #??# " | | ??# " " " ## #????????# gG""% ## #??# " | | ??# " " " ## ####?????# "!%![= ## #?# " | | ??# ## ;#;###??## =[%* ! ## ### | | ###+###########;;;;;; =*####g#######=## | | % %% =% %%!=%!%=!=!hh %*/& | | =%% *!%*% u